[Event "Late-Titled-Tuesday-Blitz-November-28-2023"]
[Site "Chess.com"]
[Date "2023.11.28"]
[Round "11"]
[White "lluiss"]
[Black "MaxLeto"]
[Result "1-0"]
[WhiteElo "2213"]
[BlackElo "2500"]
[TimeControl "180+1"]
[EndTime "16:02:41 PST"]
[Termination "lluiss won by resignation"]

1. Nf3 {[%clk 0:02:51]} 1... d5 {[%clk 0:02:38.5]} 2. d4 {[%clk 0:02:50]} 2...
c6 {[%clk 0:02:39.4]} 3. c4 {[%clk 0:02:50]} 3... Nf6 {[%clk 0:02:40.3]} 4. cxd5
{[%clk 0:02:50.5]} 4... cxd5 {[%clk 0:02:40.6]} 5. Nc3 {[%clk 0:02:50.8]} 5...
Nc6 {[%clk 0:02:41.3]} 6. Bf4 {[%clk 0:02:51.2]} 6... a6 {[%clk 0:02:42]} 7. e3
{[%clk 0:02:51.6]} 7... Bf5 {[%clk 0:02:42.5]} 8. Bd3 {[%clk 0:02:51.5]} 8...
Bxd3 {[%clk 0:02:42.5]} 9. Qxd3 {[%clk 0:02:52.4]} 9... e6 {[%clk 0:02:43.4]}
10. O-O {[%clk 0:02:52]} 10... Be7 {[%clk 0:02:43.4]} 11. h3 {[%clk 0:02:51.3]}
11... O-O {[%clk 0:02:43.2]} 12. Rac1 {[%clk 0:02:50.8]} 12... Rc8 {[%clk
0:02:43.3]} 13. a3 {[%clk 0:02:48.3]} 13... b5 {[%clk 0:02:43.1]} 14. b4 {[%clk
0:02:47.4]} 14... Nd7 {[%clk 0:02:39.7]} 15. Nd2 {[%clk 0:02:40.3]} 15... Nb6
{[%clk 0:02:39.9]} 16. Nb3 {[%clk 0:02:40.3]} 16... Nc4 {[%clk 0:02:40.4]} 17.
Ra1 {[%clk 0:02:40.8]} 17... Qb6 {[%clk 0:02:19.3]} 18. Nc5 {[%clk 0:02:40.5]}
18... Rfd8 {[%clk 0:02:19.1]} 19. Rfb1 {[%clk 0:02:34.6]} 19... h6 {[%clk
0:02:01.9]} 20. Bg3 {[%clk 0:02:32.4]} 20... e5 {[%clk 0:01:57.3]} 21. dxe5
{[%clk 0:02:16.7]} 21... Bxc5 {[%clk 0:01:50.3]} 22. bxc5 {[%clk 0:02:01]} 22...
Qxc5 {[%clk 0:01:51.2]} 23. Ra2 {[%clk 0:01:46.4]} 23... N6xe5 {[%clk
0:01:46.2]} 24. Qd4 {[%clk 0:01:32.8]} 24... Qxd4 {[%clk 0:01:35.2]} 25. exd4
{[%clk 0:01:32.5]} 25... Nc6 {[%clk 0:01:36.1]} 26. Rd1 {[%clk 0:01:19.2]} 26...
Rd7 {[%clk 0:01:32.7]} 27. Ne2 {[%clk 0:01:09.4]} 27... Re8 {[%clk 0:01:19.5]}
28. Nf4 {[%clk 0:01:08.8]} 28... Re4 {[%clk 0:01:16.3]} 29. f3 {[%clk
0:00:58.7]} 29... Re3 {[%clk 0:01:15.7]} 30. Nd3 {[%clk 0:00:53.9]} 30... Nxd4
{[%clk 0:00:35.3]} 31. Nc5 {[%clk 0:00:53.4]} 31... Ne2+ {[%clk 0:00:35.3]} 32.
Rxe2 {[%clk 0:00:52.1]} 32... Rxe2 {[%clk 0:00:33.4]} 33. Nxd7 {[%clk
0:00:52.2]} 33... Ne3 {[%clk 0:00:30.5]} 34. Re1 {[%clk 0:00:40.6]} 34... Rxg2+
{[%clk 0:00:29.9]} 35. Kh1 {[%clk 0:00:37.8]} 35... Rxg3 {[%clk 0:00:28.1]} 36.
Rxe3 {[%clk 0:00:37.8]} 36... Rxh3+ {[%clk 0:00:28.7]} 37. Kg2 {[%clk
0:00:37.7]} 37... Rh4 {[%clk 0:00:28.2]} 38. Re8+ {[%clk 0:00:37]} 38... Kh7
{[%clk 0:00:28]} 39. Nf8+ {[%clk 0:00:36.6]} 39... Kg8 {[%clk 0:00:21.4]} 40.
Ng6+ {[%clk 0:00:36.1]} 40... Kh7 {[%clk 0:00:22.3]} 41. Nxh4 {[%clk 0:00:36.5]}
41... g5 {[%clk 0:00:21.2]} 42. Nf5 {[%clk 0:00:35.4]} 42... Kg6 {[%clk
0:00:21.7]} 43. Ne3 {[%clk 0:00:35.5]} 43... d4 {[%clk 0:00:21.9]} 44. Nd1
{[%clk 0:00:35.4]} 44... a5 {[%clk 0:00:18.7]} 45. Ra8 {[%clk 0:00:35.3]} 45...
b4 {[%clk 0:00:19.1]} 46. axb4 {[%clk 0:00:35.6]} 46... axb4 {[%clk 0:00:20]}
47. Rb8 {[%clk 0:00:35.5]} 47... h5 {[%clk 0:00:18.3]} 48. Rxb4 {[%clk
0:00:36.4]} 48... h4 {[%clk 0:00:19]} 49. Rxd4 {[%clk 0:00:36]} 49... f5 {[%clk
0:00:19.4]} 50. Nf2 {[%clk 0:00:35]} 50... Kh5 {[%clk 0:00:19.6]} 51. Rd5 {[%clk
0:00:34.3]} 51... Kg6 {[%clk 0:00:19.8]} 52. Kh3 {[%clk 0:00:34.4]} 52... Kf6
{[%clk 0:00:18]} 53. Nd3 {[%clk 0:00:34.2]} 53... Ke6 {[%clk 0:00:17.8]} 54.
Re5+ {[%clk 0:00:33.7]} 54... Kf6 {[%clk 0:00:18.3]} 55. Ra5 {[%clk 0:00:33.6]}
55... Ke6 {[%clk 0:00:17.9]} 56. Ra6+ {[%clk 0:00:34.2]} 56... Kd5 {[%clk
0:00:18.4]} 57. Nf2 {[%clk 0:00:33]} 57... Ke5 {[%clk 0:00:18.5]} 58. Ra5+
{[%clk 0:00:32.4]} 58... Kf4 {[%clk 0:00:18.9]} 59. Kg2 {[%clk 0:00:30.9]} 59...
Ke3 {[%clk 0:00:02.4]} 60. Rxf5 {[%clk 0:00:28.9]} 60... h3+ {[%clk 0:00:03.1]}
61. Nxh3 {[%clk 0:00:28.5]} 61... g4 {[%clk 0:00:03.1]} 62. fxg4 {[%clk
0:00:27.8]} 1-0

[Event "Late-Titled-Tuesday-Blitz-November-28-2023"]
[Site "Chess.com"]
[Date "2023.11.28"]
[Round "11"]
[White "The_Straightforward_Rook"]
[Black "SouS007"]
[Result "1-0"]
[WhiteElo "2471"]
[BlackElo "2555"]
[TimeControl "180+1"]
[EndTime "16:02:48 PST"]
[Termination "The_Straightforward_Rook won by checkmate"]

1. e4 {[%clk 0:02:56]} 1... e6 {[%clk 0:03:00.3]} 2. d4 {[%clk 0:02:55.6]} 2...
d5 {[%clk 0:03:00.6]} 3. e5 {[%clk 0:02:56.2]} 3... c5 {[%clk 0:03:00.2]} 4. c3
{[%clk 0:02:56.8]} 4... Nc6 {[%clk 0:03:00.8]} 5. Nf3 {[%clk 0:02:57.2]} 5...
Nge7 {[%clk 0:02:55.1]} 6. Bd3 {[%clk 0:02:50.4]} 6... cxd4 {[%clk 0:02:51.2]}
7. cxd4 {[%clk 0:02:50.4]} 7... Nb4 {[%clk 0:02:51.1]} 8. O-O {[%clk 0:02:44.1]}
8... Nxd3 {[%clk 0:02:50.6]} 9. Qxd3 {[%clk 0:02:45]} 9... Bd7 {[%clk
0:02:49.7]} 10. Nc3 {[%clk 0:02:38.7]} 10... Nf5 {[%clk 0:02:48.2]} 11. g4
{[%clk 0:02:31.8]} 11... Nh4 {[%clk 0:02:48.2]} 12. Nxh4 {[%clk 0:02:26.9]}
12... Qxh4 {[%clk 0:02:49.1]} 13. Qg3 {[%clk 0:02:27.1]} 13... Qxg3+ {[%clk
0:02:47.4]} 14. hxg3 {[%clk 0:02:28]} 14... b5 {[%clk 0:02:45.7]} 15. Be3 {[%clk
0:02:23.6]} 15... b4 {[%clk 0:02:45.9]} 16. Ne2 {[%clk 0:02:19.8]} 16... Bb5
{[%clk 0:02:46.1]} 17. Rfe1 {[%clk 0:02:20.4]} 17... Be7 {[%clk 0:02:44.2]} 18.
Nc1 {[%clk 0:02:12.5]} 18... Bc4 {[%clk 0:02:38.9]} 19. Nb3 {[%clk 0:02:11.5]}
19... Bxb3 {[%clk 0:02:39]} 20. axb3 {[%clk 0:02:11.4]} 20... a5 {[%clk
0:02:39.3]} 21. Rec1 {[%clk 0:02:09.4]} 21... Kd7 {[%clk 0:02:39.3]} 22. Rc2
{[%clk 0:01:59.6]} 22... Rhc8 {[%clk 0:02:33.4]} 23. Rxc8 {[%clk 0:01:54.9]}
23... Kxc8 {[%clk 0:02:34.3]} 24. Kf1 {[%clk 0:01:54.7]} 24... Kc7 {[%clk
0:02:32.7]} 25. Ke2 {[%clk 0:01:55.1]} 25... Kc6 {[%clk 0:02:31.8]} 26. Kd3
{[%clk 0:01:55.7]} 26... Kb5 {[%clk 0:02:31.6]} 27. Rc1 {[%clk 0:01:52.3]} 27...
Bd8 {[%clk 0:02:31.6]} 28. g5 {[%clk 0:01:44.6]} 28... a4 {[%clk 0:02:18.1]} 29.
bxa4+ {[%clk 0:01:40.2]} 29... Rxa4 {[%clk 0:02:12.5]} 30. Rh1 {[%clk
0:01:36.6]} 30... Ra2 {[%clk 0:02:10.4]} 31. Kc2 {[%clk 0:01:35.8]} 31... Kc4
{[%clk 0:02:08.2]} 32. Rxh7 {[%clk 0:01:31.6]} 32... b3+ {[%clk 0:02:07.3]} 33.
Kb1 {[%clk 0:01:32.2]} 33... Bb6 {[%clk 0:01:49.5]} 34. Rxg7 {[%clk 0:01:31]}
34... Bxd4 {[%clk 0:01:46.3]} 35. Bxd4 {[%clk 0:01:31.9]} 35... Kxd4 {[%clk
0:01:47.2]} 36. Rxf7 {[%clk 0:01:31.6]} 36... Ra8 {[%clk 0:01:26.2]} 37. Rb7
{[%clk 0:01:17.7]} 37... Kxe5 {[%clk 0:01:10.5]} 38. Rxb3 {[%clk 0:01:17.1]}
38... Kf5 {[%clk 0:01:10.3]} 39. f4 {[%clk 0:01:15.8]} 39... e5 {[%clk 0:01:10]}
40. fxe5 {[%clk 0:00:57.3]} 40... Kxe5 {[%clk 0:01:10.9]} 41. Rb6 {[%clk
0:00:50]} 41... d4 {[%clk 0:01:04.4]} 42. Kc2 {[%clk 0:00:47.6]} 42... Rf8
{[%clk 0:01:02.6]} 43. g6 {[%clk 0:00:46]} 43... Rf2+ {[%clk 0:01:01.8]} 44. Kd1
{[%clk 0:00:39.1]} 44... Rf3 {[%clk 0:00:50.1]} 45. g4 {[%clk 0:00:36.7]} 45...
Rg3 {[%clk 0:00:50.1]} 46. g5 {[%clk 0:00:34.1]} 46... Ke4 {[%clk 0:00:47.4]}
47. Rb5 {[%clk 0:00:28.5]} 47... Rg1+ {[%clk 0:00:37.6]} 48. Kd2 {[%clk
0:00:25.1]} 48... Rg2+ {[%clk 0:00:37.2]} 49. Kc1 {[%clk 0:00:25.1]} 49... Kd3
{[%clk 0:00:35]} 50. Kb1 {[%clk 0:00:21.4]} 50... Kc4 {[%clk 0:00:26.7]} 51. g7
{[%clk 0:00:20.3]} 51... Rg1+ {[%clk 0:00:20.5]} 52. Ka2 {[%clk 0:00:20.1]}
52... Kxb5 {[%clk 0:00:18.3]} 53. g8=Q {[%clk 0:00:20.6]} 53... Kc5 {[%clk
0:00:18.4]} 54. Qc8+ {[%clk 0:00:19.5]} 54... Kd5 {[%clk 0:00:18.4]} 55. Qf5+
{[%clk 0:00:19.8]} 55... Kc4 {[%clk 0:00:18.7]} 56. Qe6+ {[%clk 0:00:19.2]}
56... Kd3 {[%clk 0:00:18.2]} 57. g6 {[%clk 0:00:19]} 57... Rg3 {[%clk
0:00:17.2]} 58. Qf5+ {[%clk 0:00:18.3]} 58... Kc4 {[%clk 0:00:16.5]} 59. Qf7+
{[%clk 0:00:17.3]} 59... Kd3 {[%clk 0:00:16.4]} 60. g7 {[%clk 0:00:18.2]} 60...
Kc2 {[%clk 0:00:15.9]} 61. g8=Q {[%clk 0:00:18.5]} 61... Rxg8 {[%clk 0:00:16.7]}
62. Qxg8 {[%clk 0:00:18.9]} 62... d3 {[%clk 0:00:17.6]} 63. Qc8+ {[%clk
0:00:19.1]} 63... Kd1 {[%clk 0:00:17.4]} 64. b4 {[%clk 0:00:18.5]} 64... d2
{[%clk 0:00:18.3]} 65. Qd7 {[%clk 0:00:18.7]} 65... Ke1 {[%clk 0:00:18.7]} 66.
b5 {[%clk 0:00:19.2]} 66... d1=Q {[%clk 0:00:19]} 67. Qxd1+ {[%clk 0:00:19.7]}
67... Kf2 {[%clk 0:00:19.9]} 68. b6 {[%clk 0:00:20.3]} 68... Ke3 {[%clk
0:00:20.8]} 69. b7 {[%clk 0:00:20.9]} 69... Ke4 {[%clk 0:00:21.3]} 70. b8=Q
{[%clk 0:00:21.5]} 70... Kf5 {[%clk 0:00:21]} 71. Qb2 {[%clk 0:00:22.4]} 71...
Kg6 {[%clk 0:00:21.9]} 72. Qbe2 {[%clk 0:00:22.7]} 72... Kf5 {[%clk 0:00:22.8]}
73. Qdf1+ {[%clk 0:00:23.1]} 73... Kg5 {[%clk 0:00:23.7]} 74. Qeg2+ {[%clk
0:00:23.5]} 74... Kh4 {[%clk 0:00:24.6]} 75. Qfh1# {[%clk 0:00:23.7]} 1-0

[Event "Late-Titled-Tuesday-Blitz-November-28-2023"]
[Site "Chess.com"]
[Date "2023.11.28"]
[Round "11"]
[White "TheMagician"]
[Black "liwadas82"]
[Result "0-1"]
[WhiteElo "2275"]
[BlackElo "2372"]
[TimeControl "180+1"]
[EndTime "16:02:49 PST"]
[Termination "liwadas82 won on time"]

1. d4 {[%clk 0:03:00.9]} 1... Nf6 {[%clk 0:02:59.6]} 2. Nf3 {[%clk 0:03:00.4]}
2... e6 {[%clk 0:03:00.5]} 3. g3 {[%clk 0:03:00.1]} 3... b6 {[%clk 0:03:00]} 4.
Bg2 {[%clk 0:03:00.1]} 4... Bb7 {[%clk 0:03:00.7]} 5. O-O {[%clk 0:03:00.5]}
5... Be7 {[%clk 0:03:01.3]} 6. c4 {[%clk 0:03:00.4]} 6... O-O {[%clk 0:03:01.3]}
7. Nc3 {[%clk 0:03:00.5]} 7... Na6 {[%clk 0:03:01.8]} 8. Bg5 {[%clk 0:03:00.1]}
8... h6 {[%clk 0:03:00.4]} 9. Bf4 {[%clk 0:02:59.4]} 9... c5 {[%clk 0:02:57.3]}
10. dxc5 {[%clk 0:02:49.5]} 10... bxc5 {[%clk 0:02:53.9]} 11. Bd6 {[%clk
0:02:49.1]} 11... Bxd6 {[%clk 0:02:42.4]} 12. Qxd6 {[%clk 0:02:48.7]} 12... Ne8
{[%clk 0:02:42.9]} 13. Qd2 {[%clk 0:02:34.8]} 13... d5 {[%clk 0:02:42.6]} 14.
cxd5 {[%clk 0:02:14.9]} 14... exd5 {[%clk 0:02:43.5]} 15. Qc2 {[%clk 0:02:14.9]}
15... Nf6 {[%clk 0:02:40.6]} 16. a3 {[%clk 0:02:12.8]} 16... Qe7 {[%clk
0:02:26.2]} 17. e3 {[%clk 0:02:11.3]} 17... Rad8 {[%clk 0:02:17.5]} 18. Rfe1
{[%clk 0:02:09.3]} 18... Ne4 {[%clk 0:02:14.1]} 19. Nxe4 {[%clk 0:01:53.6]}
19... dxe4 {[%clk 0:02:15]} 20. Nd2 {[%clk 0:01:53.6]} 20... f5 {[%clk
0:02:14.3]} 21. Nc4 {[%clk 0:01:49.5]} 21... Kh7 {[%clk 0:02:06.7]} 22. Rad1
{[%clk 0:01:42.6]} 22... Nc7 {[%clk 0:01:57]} 23. Rxd8 {[%clk 0:01:33.4]} 23...
Rxd8 {[%clk 0:01:57.9]} 24. Rd1 {[%clk 0:01:32.8]} 24... Ne6 {[%clk 0:01:52.7]}
25. Rxd8 {[%clk 0:01:22.7]} 25... Qxd8 {[%clk 0:01:53.6]} 26. g4 {[%clk
0:01:16.8]} 26... g6 {[%clk 0:01:44.8]} 27. gxf5 {[%clk 0:01:06]} 27... gxf5
{[%clk 0:01:45.7]} 28. Qc3 {[%clk 0:01:03]} 28... Qd1+ {[%clk 0:01:37]} 29. Bf1
{[%clk 0:01:03.1]} 29... Qg4+ {[%clk 0:01:23.1]} 30. Bg2 {[%clk 0:01:02.3]}
30... Ng5 {[%clk 0:01:21.6]} 31. Qc1 {[%clk 0:00:34.8]} 31... Ba6 {[%clk
0:00:54.2]} 32. b3 {[%clk 0:00:21.8]} 32... Nf3+ {[%clk 0:00:48.6]} 33. Kh1
{[%clk 0:00:21.4]} 33... Qh5 {[%clk 0:00:42.5]} 34. h3 {[%clk 0:00:20.9]} 34...
Ng5 {[%clk 0:00:40.1]} 35. Kh2 {[%clk 0:00:19.8]} 35... Qe2 {[%clk 0:00:40.3]}
36. Kg1 {[%clk 0:00:18.1]} 36... Nf3+ {[%clk 0:00:30.7]} 37. Bxf3 {[%clk
0:00:16.5]} 37... Qxf3 {[%clk 0:00:30.8]} 38. Qd2 {[%clk 0:00:16.6]} 38... Bxc4
{[%clk 0:00:26.7]} 39. Qd7+ {[%clk 0:00:15.1]} 39... Kg6 {[%clk 0:00:25.5]} 40.
bxc4 {[%clk 0:00:14.4]} 40... Qxh3 {[%clk 0:00:23.1]} 41. Qd6+ {[%clk
0:00:13.5]} 41... Kg5 {[%clk 0:00:20.6]} 42. Qe7+ {[%clk 0:00:11.5]} 42... Kh5
{[%clk 0:00:17.4]} 43. Qxc5 {[%clk 0:00:09.8]} 43... Qg4+ {[%clk 0:00:14.1]} 44.
Kh2 {[%clk 0:00:10.2]} 44... Qh4+ {[%clk 0:00:12.9]} 45. Kg1 {[%clk 0:00:10.1]}
45... Qg4+ {[%clk 0:00:12.5]} 46. Kh2 {[%clk 0:00:10.5]} 46... Qf3 {[%clk
0:00:09]} 47. Kg1 {[%clk 0:00:06.3]} 47... Kg4 {[%clk 0:00:05.3]} 48. Qf8 {[%clk
0:00:03.7]} 48... Qd1+ {[%clk 0:00:04]} 49. Kg2 {[%clk 0:00:03.5]} 49... Qf3+
{[%clk 0:00:04.2]} 50. Kg1 {[%clk 0:00:03.7]} 50... Qh3 {[%clk 0:00:02.4]} 0-1

[Event "Late-Titled-Tuesday-Blitz-November-28-2023"]
[Site "Chess.com"]
[Date "2023.11.28"]
[Round "11"]
[White "karinachess1"]
[Black "cthulhuuu"]
[Result "1-0"]
[WhiteElo "2627"]
[BlackElo "2506"]
[TimeControl "180+1"]
[EndTime "16:02:56 PST"]
[Termination "karinachess1 won on time"]

1. d4 {[%clk 0:03:00.9]} 1... Nf6 {[%clk 0:02:59.6]} 2. c4 {[%clk 0:03:01]} 2...
e5 {[%clk 0:02:59.8]} 3. dxe5 {[%clk 0:02:54.1]} 3... Ng4 {[%clk 0:03:00.2]} 4.
Nf3 {[%clk 0:02:51.1]} 4... Bc5 {[%clk 0:03:00.1]} 5. e3 {[%clk 0:02:50.6]} 5...
Nc6 {[%clk 0:03:00.6]} 6. Be2 {[%clk 0:02:35.3]} 6... O-O {[%clk 0:03:00.6]} 7.
O-O {[%clk 0:02:35.5]} 7... Re8 {[%clk 0:03:01]} 8. b3 {[%clk 0:02:35.7]} 8...
a5 {[%clk 0:03:00.9]} 9. Bb2 {[%clk 0:02:35.8]} 9... Ncxe5 {[%clk 0:03:01.5]}
10. Nbd2 {[%clk 0:02:26]} 10... Ra6 {[%clk 0:02:59.6]} 11. h3 {[%clk 0:02:24.3]}
11... Nxf3+ {[%clk 0:02:47.8]} 12. Nxf3 {[%clk 0:02:25.2]} 12... Nf6 {[%clk
0:02:43.9]} 13. Bd3 {[%clk 0:02:19.4]} 13... Ne4 {[%clk 0:02:06.1]} 14. Qc2
{[%clk 0:02:19.4]} 14... f5 {[%clk 0:02:03.8]} 15. Rad1 {[%clk 0:02:06.9]} 15...
Rg6 {[%clk 0:01:58.7]} 16. Kh1 {[%clk 0:02:02.6]} 16... d6 {[%clk 0:01:58.4]}
17. Bd4 {[%clk 0:01:44.4]} 17... b6 {[%clk 0:01:54.2]} 18. Rg1 {[%clk
0:01:17.5]} 18... Bb7 {[%clk 0:01:49.7]} 19. Rdf1 {[%clk 0:01:11.3]} 19... Bxd4
{[%clk 0:01:46.6]} 20. exd4 {[%clk 0:01:08.4]} 20... Ng5 {[%clk 0:01:19.2]} 21.
Nxg5 {[%clk 0:01:08.5]} 21... Qxg5 {[%clk 0:01:19.3]} 22. d5 {[%clk 0:01:08.9]}
22... Bc8 {[%clk 0:01:19.7]} 23. f4 {[%clk 0:01:05.2]} 23... Qg3 {[%clk
0:01:19.5]} 24. Rf3 {[%clk 0:00:52]} 24... Qh4 {[%clk 0:01:14.2]} 25. Bxf5
{[%clk 0:00:52.2]} 25... Bxf5 {[%clk 0:01:08.1]} 26. Qxf5 {[%clk 0:00:53.1]}
26... Rf8 {[%clk 0:01:08.6]} 27. Qe4 {[%clk 0:00:48]} 27... Rgf6 {[%clk
0:01:03.5]} 28. Rgf1 {[%clk 0:00:48.2]} 28... g5 {[%clk 0:01:00]} 29. Qe7 {[%clk
0:00:39.8]} 29... Rxf4 {[%clk 0:00:42.9]} 30. Rxf4 {[%clk 0:00:36.1]} 30... Rxf4
{[%clk 0:00:42.5]} 31. Qd8+ {[%clk 0:00:30.2]} 31... Kg7 {[%clk 0:00:21.2]} 32.
Qxc7+ {[%clk 0:00:30.2]} 32... Kg8 {[%clk 0:00:20.8]} 33. Qd8+ {[%clk
0:00:26.3]} 33... Kg7 {[%clk 0:00:20.9]} 34. Qe7+ {[%clk 0:00:26.1]} 34... Kg8
{[%clk 0:00:21.1]} 35. Qe8+ {[%clk 0:00:23.3]} 35... Kg7 {[%clk 0:00:21.2]} 36.
Re1 {[%clk 0:00:23.3]} 36... Rf7 {[%clk 0:00:15.9]} 37. Re7 {[%clk 0:00:19.5]}
37... Rxe7 {[%clk 0:00:16.3]} 38. Qxe7+ {[%clk 0:00:20.4]} 38... Kg8 {[%clk
0:00:16.8]} 39. Qxd6 {[%clk 0:00:19.8]} 39... Qf2 {[%clk 0:00:11.8]} 40. Kh2
{[%clk 0:00:19.1]} 40... h5 {[%clk 0:00:09.9]} 41. Qg3 {[%clk 0:00:18.2]} 41...
Qf6 {[%clk 0:00:08.9]} 42. Qb8+ {[%clk 0:00:13.5]} 42... Kh7 {[%clk 0:00:08.7]}
43. Qc7+ {[%clk 0:00:13.8]} 43... Kg8 {[%clk 0:00:08.2]} 44. Qc8+ {[%clk
0:00:13.8]} 44... Kh7 {[%clk 0:00:08.3]} 45. Qb8 {[%clk 0:00:11.8]} 45... h4
{[%clk 0:00:07.1]} 46. Qc7+ {[%clk 0:00:11.8]} 46... Kg8 {[%clk 0:00:06.7]} 47.
a3 {[%clk 0:00:12]} 47... Qb2 {[%clk 0:00:03.1]} 48. Qd8+ {[%clk 0:00:11.8]}
48... Kh7 {[%clk 0:00:02.6]} 49. Qxg5 {[%clk 0:00:11.7]} 49... Qxb3 {[%clk
0:00:01.8]} 50. Qxh4+ {[%clk 0:00:11.8]} 50... Kg6 {[%clk 0:00:02.4]} 51. Qd4
{[%clk 0:00:11.7]} 51... Qxa3 {[%clk 0:00:02.2]} 52. d6 {[%clk 0:00:11.4]} 52...
Qa4 {[%clk 0:00:02.1]} 53. d7 {[%clk 0:00:11.4]} 53... Qxd7 {[%clk 0:00:01.9]}
54. Qxd7 {[%clk 0:00:11.2]} 1-0

[Event "Late-Titled-Tuesday-Blitz-November-28-2023"]
[Site "Chess.com"]
[Date "2023.11.28"]
[Round "11"]
[White "kleber2007"]
[Black "Hirna2005"]
[Result "1-0"]
[WhiteElo "2397"]
[BlackElo "2340"]
[TimeControl "180+1"]
[EndTime "16:02:58 PST"]
[Termination "kleber2007 won by resignation"]

1. Nf3 {[%clk 0:02:55.2]} 1... g6 {[%clk 0:03:00.5]} 2. d4 {[%clk 0:02:53.6]}
2... Bg7 {[%clk 0:03:01]} 3. e4 {[%clk 0:02:53.4]} 3... d6 {[%clk 0:03:01.4]} 4.
c3 {[%clk 0:02:53.3]} 4... Nf6 {[%clk 0:03:01]} 5. Bd3 {[%clk 0:02:52.9]} 5...
O-O {[%clk 0:03:00.9]} 6. O-O {[%clk 0:02:52.7]} 6... b6 {[%clk 0:03:00]} 7. a4
{[%clk 0:02:50.9]} 7... Bb7 {[%clk 0:03:00.1]} 8. a5 {[%clk 0:02:51.1]} 8... a6
{[%clk 0:02:59.3]} 9. axb6 {[%clk 0:02:36]} 9... cxb6 {[%clk 0:02:59.1]} 10. Re1
{[%clk 0:02:31.8]} 10... Nbd7 {[%clk 0:02:55.8]} 11. Nbd2 {[%clk 0:02:22.4]}
11... e5 {[%clk 0:02:54.8]} 12. Nc4 {[%clk 0:02:10.2]} 12... Qc7 {[%clk
0:02:51]} 13. Qe2 {[%clk 0:01:48.3]} 13... Rfe8 {[%clk 0:02:47.6]} 14. d5 {[%clk
0:01:32.7]} 14... Nc5 {[%clk 0:02:44.8]} 15. Bc2 {[%clk 0:01:32.4]} 15... a5
{[%clk 0:02:38]} 16. Nfd2 {[%clk 0:01:26.9]} 16... Ba6 {[%clk 0:02:27.6]} 17. f3
{[%clk 0:01:26.2]} 17... Nh5 {[%clk 0:02:17.7]} 18. b3 {[%clk 0:01:18.3]} 18...
Nf4 {[%clk 0:02:13.3]} 19. Qf1 {[%clk 0:01:17.9]} 19... Bh6 {[%clk 0:01:44.9]}
20. g3 {[%clk 0:01:13.8]} 20... Nh5 {[%clk 0:01:44.6]} 21. Nb1 {[%clk
0:01:06.4]} 21... Bg7 {[%clk 0:01:42.4]} 22. Be3 {[%clk 0:01:01]} 22... Rac8
{[%clk 0:01:39.7]} 23. Qf2 {[%clk 0:00:51.2]} 23... Bxc4 {[%clk 0:01:26.9]} 24.
bxc4 {[%clk 0:00:51.2]} 24... Nd7 {[%clk 0:01:23.4]} 25. Na3 {[%clk 0:00:50.1]}
25... Rb8 {[%clk 0:01:19.2]} 26. Ba4 {[%clk 0:00:49.8]} 26... Rec8 {[%clk
0:01:15.1]} 27. Bc6 {[%clk 0:00:49.5]} 27... Nc5 {[%clk 0:01:14.1]} 28. Nb5
{[%clk 0:00:48]} 28... Qe7 {[%clk 0:01:13.8]} 29. Bxc5 {[%clk 0:00:44.6]} 29...
dxc5 {[%clk 0:01:10.6]} 30. d6 {[%clk 0:00:44.6]} 30... Qe6 {[%clk 0:01:07]} 31.
Bd5 {[%clk 0:00:42.5]} 31... Qf6 {[%clk 0:01:07.1]} 32. Red1 {[%clk 0:00:37.6]}
32... Rd8 {[%clk 0:01:06.5]} 33. Kg2 {[%clk 0:00:34]} 33... Qg5 {[%clk
0:01:05.9]} 34. Kh1 {[%clk 0:00:33.9]} 34... Bh6 {[%clk 0:01:03.6]} 35. Rd3
{[%clk 0:00:32.9]} 35... Bf8 {[%clk 0:00:58.5]} 36. Rf1 {[%clk 0:00:32.3]} 36...
Kg7 {[%clk 0:00:57.3]} 37. f4 {[%clk 0:00:32.7]} 37... exf4 {[%clk 0:00:54.1]}
38. gxf4 {[%clk 0:00:33.6]} 38... Qg4 {[%clk 0:00:45.3]} 39. e5 {[%clk
0:00:31.9]} 39... f6 {[%clk 0:00:34.1]} 40. Qf3 {[%clk 0:00:30.8]} 40... Qh4
{[%clk 0:00:29.2]} 41. f5 {[%clk 0:00:26.8]} 41... fxe5 {[%clk 0:00:20.4]} 42.
fxg6 {[%clk 0:00:26.7]} 42... hxg6 {[%clk 0:00:20.6]} 43. Be6 {[%clk 0:00:19.8]}
43... Nf4 {[%clk 0:00:19.8]} 44. Bg4 {[%clk 0:00:18.4]} 44... Qg5 {[%clk
0:00:18.8]} 45. Rd2 {[%clk 0:00:17.4]} 45... Rb7 {[%clk 0:00:17.6]} 46. d7
{[%clk 0:00:17.4]} 46... Be7 {[%clk 0:00:17]} 47. Rdd1 {[%clk 0:00:16.2]} 47...
Bf6 {[%clk 0:00:16.8]} 48. Rg1 {[%clk 0:00:15.1]} 48... Rh8 {[%clk 0:00:16.1]}
49. Rd2 {[%clk 0:00:13]} 49... Nh3 {[%clk 0:00:14.5]} 50. Qxb7 {[%clk 0:00:12]}
50... Qxd2 {[%clk 0:00:12.2]} 51. d8=Q+ {[%clk 0:00:11.9]} 51... Kh6 {[%clk
0:00:12.6]} 52. Qxd2+ {[%clk 0:00:11.6]} 52... Bg5 {[%clk 0:00:11.6]} 53. Qdg2
{[%clk 0:00:10.7]} 53... Nf4 {[%clk 0:00:11.4]} 54. Qgf3 {[%clk 0:00:09.5]}
54... Rf8 {[%clk 0:00:10.8]} 55. Nd6 {[%clk 0:00:08.1]} 55... e4 {[%clk
0:00:10.7]} 56. Nxe4 {[%clk 0:00:07.8]} 56... Ne6 {[%clk 0:00:09.3]} 57. Nxg5
{[%clk 0:00:07.5]} 57... Rxf3 {[%clk 0:00:07.7]} 58. Nxf3 {[%clk 0:00:07.5]}
58... Nf4 {[%clk 0:00:07.2]} 59. Qc7 {[%clk 0:00:06.5]} 59... Ne2 {[%clk
0:00:05.1]} 60. Kg2 {[%clk 0:00:06.8]} 60... Nf4+ {[%clk 0:00:05]} 61. Qxf4+
{[%clk 0:00:05.7]} 1-0